fUST/lending_fUST_20240302
["ID","MTS","AMOUNT","RATE_DAILY","PERIOD"]
[316172864,1709388637235,-894.82,0.00023999,2]
[316172865,1709388637244,-894.82,0.00023999,2]
[316172867,1709388637253,-894.82,0.00023999,2]
[316172868,1709388637262,-894.82,0.00023999,2]
[316172869,1709388637271,-894.82,0.00023999,2]
[316172870,1709388637281,-894.82,0.00023999,2]
[316172871,1709388637290,-894.82,0.00023999,2]
[316172872,1709388637299,-894.82,0.00023999,2]
[316172873,1709388637309,-894.82,0.00023999,2]
[316172874,1709388637319,-894.82,0.00023999,2]
[316172876,1709388637328,-894.82,0.00023999,2]
[316172877,1709388637338,-895.03,0.00023999,2]
[316172879,1709388637348,-1468.29,0.00023999,2]
[316172881,1709388637357,-1468.29,0.00023999,2]
[316172882,1709388637366,-1468.29,0.00023999,2]
[316172883,1709388637375,-1468.29,0.00023999,2]
[316172884,1709388637384,-1468.29,0.00023999,2]
[316172885,1709388637393,-1468.29,0.00023999,2]
[316172886,1709388637403,-1468.29,0.00023999,2]
[316172887,1709388637412,-1468.29,0.00023999,2]
[316172888,1709388637421,-1468.29,0.00023999,2]
[316172889,1709388637430,-1468.29,0.00023999,2]
[316172890,1709388637440,-1468.29,0.00023999,2]
[316172891,1709388637448,-1468.29,0.00023999,2]
[316172892,1709388637457,-1468.29,0.00023999,2]
[316172893,1709388637466,-1468.29,0.00023999,2]
[316172894,1709388637475,-1468.29,0.00023999,2]
[316172895,1709388637484,-1468.33065556,0.00023999,2]
[316172896,1709388637494,-19643.64166938,0.00023999,4]
[316172897,1709388637502,-500.0,0.00023999,2]
[316172898,1709388637512,-501.1487818,0.00023999,2]
[316172899,1709388637522,-1595469.47708087,0.00024,5]
[316172900,1709388637536,-288815.99270886,0.00024,5]
[316172901,1709388637548,-62010.98871753,0.00024,5]
[316172912,1709388639781,-424.64253157,0.00024,5]
[316172916,1709388639852,-1039.65920171,0.00024,5]
[316172970,1709388640958,-699.11829537,0.00024,5]
[316173186,1709388642892,-4374.51931736,0.00024,5]
[316173189,1709388642905,-3166.48110381,0.00024,5]
[316173659,1709388648187,-703.86677713,0.000239,2]
[316173661,1709388648198,-500.0,0.00023999,2]
[316173663,1709388648207,-500.0,0.00023999,2]
[316173665,1709388648217,-500.0,0.00023999,2]
[316173667,1709388648226,-500.0,0.00023999,2]
[316173669,1709388648239,-500.0,0.00023999,2]
[316173671,1709388648250,-500.0,0.00023999,2]
[316173673,1709388648258,-500.0,0.00023999,2]
[316173675,1709388648268,-598.45657604,0.00023999,2]
[316173677,1709388648277,-23926.48033965,0.00024,5]
[316173680,1709388648295,-49595.66527582,0.00024,5]
[316173682,1709388648307,-908.21571175,0.00024,5]
[316173684,1709388648325,-744.89206624,0.00024,5]
[316173726,1709388884628,203.16,0.000199,20]
[316173827,1709389832053,-214.50892528,0.00021915,2]
[316173828,1709389832062,-280.28110387,0.00021915,2]
[316173829,1709389832071,-176.0108452,0.00021915,2]
[316173830,1709389832084,-903.88468118,0.00021915,2]
[316173831,1709389832093,-277.96,0.00021916,2]
[316173832,1709389832102,-500.0,0.00021916,2]
[316173833,1709389832110,-500.0,0.00021916,2]
[316173834,1709389832119,-228.256886,0.00021979,2]
[316173835,1709389832127,-327.2251864,0.00022017,2]
[316173836,1709389832136,-56.73987663,0.00022437,2]
[316173837,1709389832147,-7443.83650717,0.00022437,2]
[316173838,1709389832156,-341.0,0.00022534,2]
[316173839,1709389832165,-500.0,0.00022534,2]
[316173840,1709389832174,-1323.20521781,0.00022554,4]
[316173841,1709389832183,-1878.75813901,0.00022557,4]
[316173842,1709389832192,-4613.19241457,0.00022559,5]
[316173843,1709389832200,-3884.94488277,0.00022577,5]
[316173844,1709389832209,-500.0,0.00023475,2]
[316173845,1709389832218,-500.0,0.00023476,2]
[316173846,1709389832227,-306.6964091,0.00023501,2]
[316173847,1709389832236,-153.6576126,0.00023501,2]
[316173848,1709389832244,-5000.0,0.00023539,5]
[316173849,1709389832253,-5000.0,0.00023556,5]
[316173850,1709389832262,-500.0,0.00023898,2]
[316173851,1709389832366,-590.94,0.00023899,2]
[316173852,1709389832375,-500.0,0.00023899,2]
[316173853,1709389832385,-500.0,0.00023899,2]
[316173854,1709389832394,-500.0,0.00023899,2]
[316173855,1709389832404,-543.68572627,0.00023899,2]
[316173856,1709389832414,-500.0,0.00023899,2]
[316173857,1709389832423,-500.0,0.00023899,2]
[316173858,1709389832433,-504.23,0.00023899,2]
[316173859,1709389832442,-500.0,0.00023899,2]
[316173860,1709389832451,-500.0,0.00023899,2]
[316173861,1709389832461,-622.04,0.00023899,2]
[316173862,1709389832470,-500.0,0.00023899,2]
[316173863,1709389832479,-500.0,0.00023899,2]
[316173864,1709389832488,-500.0,0.00023899,2]
[316173865,1709389832498,-500.0,0.00023899,2]
[316173866,1709389832507,-500.0,0.00023899,2]
[316173867,1709389832516,-500.0,0.00023899,2]
[316173868,1709389832526,-500.0,0.00023899,2]
[316173869,1709389832535,-500.0,0.00023899,2]
[316173870,1709389832545,-517.32870552,0.00023899,2]
[316173871,1709389832554,-42814.42318237,0.000239,2]
[316173872,1709389832563,-500.0,0.00023943,2]
[316173873,1709389832572,-500.0,0.00023979,2]
[316173874,1709389832583,-500.0,0.00023979,2]
[316173875,1709389832592,-500.0,0.00023979,2]
[316173877,1709389832603,-500.0,0.00023979,2]
[316173878,1709389832612,-541.24,0.0002398,2]
[316173880,1709389832623,-384.67074955,0.00023998,2]
[316173882,1709389832632,-155.00775039,0.00023998,2]
[316173884,1709389832642,-744.26725147,0.00023998,2]
[316173886,1709389832651,-11118.52761484,0.00023998,2]
[316174049,1709389838654,-480.40153314,0.00023998,2]
[316174050,1709389838664,-384.75046686,0.00023998,2]
[316174051,1709389838676,-1207.30559651,0.00023998,2]
[316174052,1709389838686,-496.95489588,0.00023998,2]
[316174053,1709389838695,-5110.24725051,0.00023998,2]
[316174054,1709389838704,-203.57256997,0.00023998,2]
[316174055,1709389838713,-19.15792913,0.00023998,2]
[316174056,1709389838726,-135.95530353,0.00023998,2]
[316174057,1709389838736,-156.21815447,0.00023998,2]
[316174058,1709389838745,-500.0,0.00023998,2]
[316174059,1709389838755,-500.0,0.00023998,2]
[316174060,1709389838764,-520.41977642,0.00023998,2]
[316174061,1709389838774,-204.4532614,0.00023999,2]
[316174062,1709389838784,-151.0,0.00023999,2]
[316174063,1709389838792,-151.0,0.00023999,2]
[316174064,1709389838801,-151.0,0.00023999,2]
[316174065,1709389838810,-151.0,0.00023999,2]
[316174066,1709389838819,-151.0,0.00023999,2]
[316174067,1709389838831,-275.31,0.00023999,2]
[316174068,1709389838840,-500.0,0.00023999,2]
[316174069,1709389838849,-500.0,0.00023999,2]
[316174070,1709389838858,-500.0,0.00023999,2]
[316174071,1709389838867,-500.0,0.00023999,2]
[316174072,1709389838876,-500.0,0.00023999,2]
[316174073,1709389838885,-500.0,0.00023999,2]
[316174074,1709389838894,-500.0,0.00023999,2]
[316174075,1709389838903,-500.0,0.00023999,2]
[316174076,1709389838912,-407.69,0.00023999,2]
[316174077,1709389838921,-500.0,0.00023999,2]
[316174078,1709389838931,-500.0,0.00023999,2]
[316174079,1709389838940,-500.0,0.00023999,2]
[316174080,1709389838949,-500.0,0.00023999,2]
[316174081,1709389838959,-500.0,0.00023999,2]
[316174082,1709389838968,-500.0,0.00023999,2]
[316174083,1709389838977,-500.0,0.00023999,2]
[316174084,1709389838987,-500.0,0.00023999,2]
[316174085,1709389838997,-517.62,0.00023999,2]
[316174086,1709389839006,-500.0,0.00023999,2]
[316174087,1709389839016,-500.0,0.00023999,2]
[316174088,1709389839026,-500.0,0.00023999,2]
[316174089,1709389839035,-500.0,0.00023999,2]
[316174090,1709389839044,-504.23,0.00023999,2]
[316174091,1709389839053,-504.23,0.00023999,2]
[316174092,1709389839063,-504.23,0.00023999,2]
[316174093,1709389839072,-504.23,0.00023999,2]
[316174094,1709389839084,-504.23,0.00023999,2]
[316174095,1709389839093,-504.23,0.00023999,2]
[316174096,1709389839103,-504.23,0.00023999,2]
[316174097,1709389839112,-504.23,0.00023999,2]
[316174098,1709389839121,-504.23,0.00023999,2]
[316174099,1709389839131,-504.23,0.00023999,2]
[316174100,1709389839140,-504.23,0.00023999,2]
[316174101,1709389839149,-504.23,0.00023999,2]
[316174102,1709389839158,-504.23,0.00023999,2]
[316174103,1709389839167,-504.23,0.00023999,2]
[316174104,1709389839177,-504.23,0.00023999,2]
[316174105,1709389839187,-504.23,0.00023999,2]
[316174106,1709389839197,-504.23,0.00023999,2]
[316174107,1709389839206,-504.23,0.00023999,2]
[316174108,1709389839216,-504.23,0.00023999,2]
[316174109,1709389839225,-504.23,0.00023999,2]
[316174110,1709389839234,-151.0,0.00023999,2]
[316174111,1709389839243,-504.23,0.00023999,2]
[316174112,1709389839252,-504.23,0.00023999,2]
[316174113,1709389839261,-504.28,0.00023999,2]
[316174114,1709389839270,-500.0,0.00023999,2]
[316174115,1709389839280,-500.0,0.00023999,2]
[316174116,1709389839289,-500.0,0.00023999,2]
[316174117,1709389839298,-500.0,0.00023999,2]
[316174118,1709389839313,-500.0,0.00023999,2]
[316174119,1709389839340,-500.0,0.00023999,2]
[316174120,1709389839381,-550.69738441,0.00023999,2]
[316174121,1709389839426,-500.0,0.00023999,2]
[316174123,1709389839470,-500.0,0.00023999,2]
[316174124,1709389839504,-373.30125821,0.00023999,2]
[316174125,1709389839515,-622.04,0.00023999,2]
[316174126,1709389839526,-622.04,0.00023999,2]
[316174127,1709389839537,-622.04,0.00023999,2]
[316174128,1709389839548,-622.04,0.00023999,2]
[316174129,1709389839558,-622.04,0.00023999,2]
[316174130,1709389839567,-622.04,0.00023999,2]
[316174131,1709389839578,-622.04,0.00023999,2]
[316174132,1709389839588,-622.04,0.00023999,2]
[316174133,1709389839600,-622.04,0.00023999,2]
[316174134,1709389839613,-622.04,0.00023999,2]
[316174135,1709389839626,-622.04,0.00023999,2]
[316174136,1709389839637,-622.04,0.00023999,2]
[316174137,1709389839648,-622.04,0.00023999,2]
[316174138,1709389839659,-622.04,0.00023999,2]
[316174139,1709389839669,-622.04,0.00023999,2]
[316174140,1709389839680,-622.04,0.00023999,2]
[316174141,1709389839691,-622.04,0.00023999,2]
[316174142,1709389839703,-622.04,0.00023999,2]
[316174143,1709389839713,-622.04,0.00023999,2]
[316174144,1709389839724,-622.04,0.00023999,2]
[316174145,1709389839734,-622.04,0.00023999,2]
[316174146,1709389839744,-622.04,0.00023999,2]
[316174147,1709389839755,-622.16,0.00023999,2]
[316174148,1709389839765,-504.64881378,0.00023999,2]
[316174149,1709389839774,-500.0,0.00023999,2]
[316174150,1709389839784,-511.28,0.00023999,2]
[316174151,1709389839794,-500.0,0.00023999,2]
[316174152,1709389839803,-500.0,0.00023999,2]
[316174153,1709389839814,-500.0,0.00023999,2]
[316174154,1709389839824,-500.0,0.00023999,2]
[316174155,1709389839836,-500.0,0.00023999,2]
[316174156,1709389839847,-500.0,0.00023999,2]
[316174157,1709389839857,-500.0,0.00023999,2]
[316174158,1709389839868,-500.0,0.00023999,2]
[316174159,1709389839878,-500.0,0.00023999,2]
[316174160,1709389839888,-423.53,0.00023999,2]
[316174161,1709389839898,-500.0,0.00023999,2]
[316174162,1709389839909,-500.0,0.00023999,2]
[316174163,1709389839919,-500.0,0.00023999,2]
[316174164,1709389839929,-500.0,0.00023999,2]
[316174165,1709389839940,-500.0,0.00023999,2]
[316174166,1709389839950,-519.44580644,0.00023999,2]
[316174167,1709389839961,-500.0,0.00023999,2]
[316174168,1709389839972,-500.0,0.00023999,2]
[316174169,1709389839982,-500.0,0.00023999,2]
[316174171,1709389839991,-500.0,0.00023999,2]
[316174173,1709389840000,-500.0,0.00023999,2]
[316174175,1709389840010,-500.0,0.00023999,2]
[316174176,1709389840020,-500.0,0.00023999,2]
[316174177,1709389840031,-500.0,0.00023999,2]
[316174178,1709389840043,-174.49,0.00023999,2]
[316174179,1709389840053,-500.0,0.00023999,2]
[316174180,1709389840064,-500.0,0.00023999,2]
[316174181,1709389840074,-500.0,0.00023999,2]
[316174183,1709389840085,-500.0,0.00023999,2]
[316174184,1709389840097,-630.33,0.00023999,2]
[316174185,1709389840108,-700084.53568687,0.00024,5]
[316174186,1709389840118,-80000.0,0.00024,2]
[316174187,1709389840128,-175.5,0.00024,2]
[316174188,1709389840138,-417876.8693554,0.00024,5]
[316174417,1709389842981,-814.60650288,0.00024,5]
[316188668,1709391032219,-569.9313356,0.00021891,2]
[316188676,1709391032285,-1278.4,0.00021891,2]
[316188679,1709391032297,-23051.6686644,0.00021891,2]
[316188682,1709391032306,-280.28110387,0.0002207,2]
[316188684,1709391032315,-1079.89552638,0.00022071,2]
[316188687,1709391032324,-327.2251864,0.00022071,2]
[316188690,1709391032333,-214.50892528,0.00022072,2]
[316188693,1709391032342,-234.230025,0.00022083,2]
[316188696,1709391032352,-1851.00219604,0.00022343,2]
[316188699,1709391032361,-175.46887391,0.00022355,2]
[316188702,1709391032370,-291.62273342,0.00022356,2]
[316188705,1709391032379,-840.82476966,0.00022588,3]
[316188707,1709391032388,-1722.92916578,0.00022595,5]
[316188709,1709391032397,-511.89768432,0.00023898,2]
[316188711,1709391032406,-500.0,0.00023898,2]
[316188713,1709391032415,-500.0,0.00023898,2]
[316188715,1709391032424,-504.64881378,0.00023898,2]
[316188717,1709391032433,-500.0,0.00023898,2]
[316188719,1709391032442,-500.0,0.00023898,2]
[316188720,1709391032451,-500.0,0.00023898,2]
[316188721,1709391032460,-500.0,0.00023898,2]
[316188722,1709391032469,-500.0,0.00023898,2]
[316188723,1709391032479,-503.64485302,0.00023898,2]
[316188724,1709391032488,-500.0,0.00023898,2]
[316188725,1709391032496,-500.0,0.00023898,2]
[316188726,1709391032505,-500.0,0.00023898,2]
[316188727,1709391032514,-543.87,0.00023899,2]
[316188728,1709391032523,-452.47736034,0.00023899,2]
[316188764,1709391038386,-47.52263966,0.00023899,2]
[316188766,1709391038395,-500.0,0.00023899,2]
[316188768,1709391038404,-500.0,0.00023899,2]
[316188770,1709391038414,-252.47736034,0.00023899,2]
[316188774,1709391038447,-247.52263966,0.00023899,2]
[316188776,1709391038456,-500.0,0.00023899,2]
[316188778,1709391038465,-500.0,0.00023899,2]
[316188780,1709391038475,-16499.2734939,0.000239,2]
[316188782,1709391038484,-3499.78525508,0.000239,2]
[316188784,1709391038493,-500.0,0.0002392,2]
[316188786,1709391038502,-500.0,0.0002392,2]
[316188788,1709391038511,-500.0,0.0002392,2]
[316188790,1709391038520,-520.41977642,0.0002392,2]
[316188792,1709391038530,-12960.45097895,0.00023921,2]
[316188794,1709391038539,-155.00310006,0.00023998,2]
[316188796,1709391038551,-500.0,0.00023998,2]
[316188798,1709391038561,-500.0,0.00023998,2]
[316188800,1709391038571,-500.0,0.00023998,2]
[316188802,1709391038580,-500.0,0.00023998,2]
[316188804,1709391038589,-500.0,0.00023998,2]
[316188806,1709391038599,-500.0,0.00023998,2]
[316188808,1709391038608,-500.0,0.00023998,2]
[316188810,1709391038617,-156.21815447,0.00023998,2]
[316188812,1709391038627,-6912.93495998,0.00023998,2]
[316188814,1709391038636,-645.32,0.00023998,2]
[316188816,1709391038645,-500.0,0.00023998,2]
[316188818,1709391038655,-500.0,0.00023998,2]
[316188820,1709391038664,-500.0,0.00023998,2]
[316188822,1709391038673,-500.0,0.00023998,2]
[316188824,1709391038682,-275.31,0.00023998,2]
[316188826,1709391038692,-500.0,0.00023998,2]
[316188828,1709391038702,-500.0,0.00023998,2]
[316188830,1709391038711,-500.0,0.00023998,2]
[316188832,1709391038720,-500.0,0.00023998,2]
[316188834,1709391038729,-173.78616604,0.00023998,2]
[316188837,1709391038739,-160.0,0.00023999,2]
[316188838,1709391038748,-160.0,0.00023999,2]
[316188840,1709391038757,-160.0,0.00023999,2]
[316188843,1709391038767,-253.26527282,0.00023999,2]
[316188845,1709391038776,-160.41426192,0.00023999,2]
[316188847,1709391038786,-160.0,0.00023999,2]
[316188849,1709391038795,-160.0,0.00023999,2]
[316188851,1709391038807,-238.43340256,0.00023999,2]
[316188852,1709391038816,-151.0,0.00023999,2]
[316188854,1709391038825,-500.0,0.00023999,2]
[316188856,1709391038834,-519.44580644,0.00023999,2]
[316188858,1709391038844,-500.0,0.00023999,2]
[316188860,1709391038853,-373.30125821,0.00023999,2]
[316188862,1709391038862,-500.0,0.00023999,2]
[316188864,1709391038871,-505.986125,0.00023999,2]
[316188867,1709391038883,-204.4532614,0.00023999,2]
[316188869,1709391038892,-662.97,0.00023999,2]
[316188871,1709391038901,-662.97,0.00023999,2]
[316188873,1709391038910,-662.97,0.00023999,2]
[316188875,1709391038919,-662.97,0.00023999,2]
[316188877,1709391038929,-662.97,0.00023999,2]
[316188879,1709391038938,-662.97,0.00023999,2]
[316188881,1709391038952,-662.97,0.00023999,2]
[316188883,1709391038961,-662.97,0.00023999,2]
[316188885,1709391038970,-662.97,0.00023999,2]
[316188887,1709391038978,-662.97,0.00023999,2]
[316188889,1709391038988,-662.97,0.00023999,2]
[316188891,1709391038997,-662.97,0.00023999,2]
[316188893,1709391039006,-662.97,0.00023999,2]
[316188895,1709391039015,-662.97,0.00023999,2]
[316188897,1709391039025,-662.97,0.00023999,2]
[316188899,1709391039034,-662.97,0.00023999,2]
[316188901,1709391039044,-662.97,0.00023999,2]
[316188903,1709391039054,-662.97,0.00023999,2]
[316188905,1709391039062,-662.97,0.00023999,2]
[316188907,1709391039071,-662.97,0.00023999,2]
[316188909,1709391039080,-662.97,0.00023999,2]
[316188911,1709391039089,-662.97,0.00023999,2]
[316188913,1709391039098,-662.97,0.00023999,2]
[316188915,1709391039107,-663.20078689,0.00023999,2]
[316188917,1709391039115,-500.0,0.00023999,2]
[316188919,1709391039124,-500.0,0.00023999,2]
[316188921,1709391039135,-500.0,0.00023999,2]
[316188923,1709391039145,-500.0,0.00023999,2]
[316188925,1709391039154,-422.72,0.00023999,2]
[316188927,1709391039162,-500.0,0.00023999,2]
[316188929,1709391039171,-500.0,0.00023999,2]
[316188931,1709391039180,-500.0,0.00023999,2]
[316188933,1709391039189,-500.0,0.00023999,2]
[316188935,1709391039198,-500.0,0.00023999,2]
[316188937,1709391039207,-500.0,0.00023999,2]
[316188939,1709391039215,-500.0,0.00023999,2]
[316188941,1709391039225,-500.0,0.00023999,2]
[316188943,1709391039234,-500.0,0.00023999,2]
[316188945,1709391039243,-500.0,0.00023999,2]
[316188947,1709391039253,-500.0,0.00023999,2]
[316188949,1709391039262,-500.0,0.00023999,2]
[316188951,1709391039271,-367.64,0.00023999,2]
[316188953,1709391039280,-500.0,0.00023999,2]
[316188955,1709391039289,-500.0,0.00023999,2]
[316188957,1709391039300,-500.0,0.00023999,2]
[316188959,1709391039309,-500.0,0.00023999,2]
[316188961,1709391039318,-500.0,0.00023999,2]
[316188962,1709391039327,-500.0,0.00023999,2]
[316188964,1709391039336,-500.0,0.00023999,2]
[316188967,1709391039346,-500.0,0.00023999,2]
[316188968,1709391039355,-407.69,0.00023999,2]
[316188970,1709391039364,-500.0,0.00023999,2]
[316188972,1709391039373,-500.0,0.00023999,2]
[316188975,1709391039382,-500.0,0.00023999,2]
[316188977,1709391039392,-500.0,0.00023999,2]
[316188979,1709391039401,-500.0,0.00023999,2]
[316188981,1709391039410,-500.0,0.00023999,2]
[316188982,1709391039419,-500.0,0.00023999,2]
[316188984,1709391039428,-500.0,0.00023999,2]
[316188986,1709391039437,-500.0,0.00023999,2]
[316188988,1709391039446,-500.0,0.00023999,2]
[316188990,1709391039455,-500.0,0.00023999,2]
[316188991,1709391039465,-500.0,0.00023999,2]
[316188992,1709391039474,-500.0,0.00023999,2]
[316188993,1709391039569,-500.0,0.00023999,2]
[316188994,1709391039590,-500.0,0.00023999,2]
[316188995,1709391039599,-500.0,0.00023999,2]
[316188996,1709391039608,-500.0,0.00023999,2]
[316188997,1709391039617,-500.0,0.00023999,2]
[316188999,1709391039626,-500.0,0.00023999,2]
[316189000,1709391039635,-500.0,0.00023999,2]
[316189001,1709391039645,-500.0,0.00023999,2]
[316189003,1709391039654,-154.21776673,0.00023999,2]
[316189005,1709391039664,-500.0,0.00023999,2]
[316189007,1709391039673,-500.0,0.00023999,2]
[316189009,1709391039682,-500.0,0.00023999,2]
[316189011,1709391039692,-500.0,0.00023999,2]
[316189013,1709391039702,-500.0,0.00023999,2]
[316189015,1709391039711,-500.0,0.00023999,2]
[316189017,1709391039720,-500.0,0.00023999,2]
[316189019,1709391039730,-517.62,0.00023999,2]
[316189021,1709391039740,-500.0,0.00023999,2]
[316189023,1709391039749,-500.0,0.00023999,2]
[316189025,1709391039759,-500.0,0.00023999,2]
[316189028,1709391039769,-500.0,0.00023999,2]
[316189029,1709391039779,-630.33,0.00023999,2]
[316189031,1709391039789,-500.0,0.00023999,2]
[316189034,1709391039800,-500.0,0.00023999,2]
[316189036,1709391039810,-500.0,0.00023999,2]
[316189038,1709391039820,-500.0,0.00023999,2]
[316189040,1709391039830,-465.07491739,0.00023999,2]
[316189041,1709391039840,-500.0,0.00023999,2]
[316189043,1709391039849,-500.0,0.00023999,2]
[316189045,1709391039867,-500.0,0.00023999,2]
[316189048,1709391039889,-500.0,0.00023999,2]
[316189050,1709391039911,-500.0,0.00023999,2]
[316189052,1709391039932,-500.0,0.00023999,2]
[316189054,1709391039952,-500.0,0.00023999,2]
[316189056,1709391039972,-500.0,0.00023999,2]
[316189058,1709391039994,-423.53,0.00023999,2]
[316189060,1709391040016,-500.0,0.00023999,2]
[316189062,1709391040026,-500.0,0.00023999,2]
[316189064,1709391040035,-500.0,0.00023999,2]
[316189066,1709391040044,-500.0,0.00023999,2]
[316189068,1709391040054,-500.0,0.00023999,2]
[316189070,1709391040063,-500.0,0.00023999,2]
[316189072,1709391040072,-500.0,0.00023999,2]
[316189074,1709391040081,-174.49,0.00023999,2]
[316189076,1709391040089,-1145625.52741701,0.00024,5]
[316189082,1709391040138,-997.19098576,0.00024,5]
[316189085,1709391040149,-1361.47748343,0.00024,5]
[316189191,1709391041122,-13706.35213637,0.00024,5]
[316189193,1709391041134,-8545.0123355,0.00024,5]
[316189195,1709391041144,-7998.46444944,0.00024,5]
[316189198,1709391041156,-2013.66708814,0.00024,5]
[316189200,1709391041167,-7026.69072316,0.00024,5]
[316189202,1709391041183,-2465.74508165,0.00024,5]
[316189803,1709391047475,-314.81458102,0.000219,2]
[316189805,1709391047485,-1079.89552638,0.00023999,2]
[316189807,1709391047494,-214.50892528,0.00023999,2]
[316189809,1709391047504,-106496.18199166,0.00024,5]
[316189812,1709391047515,-398459.50419282,0.00024,5]
[316189814,1709391047526,-340.95874104,0.00024,5]
[316189818,1709391047552,-812.04125896,0.00024,5]
[316191890,1709392232371,-214.50892528,0.00021745,2]
[316191892,1709392232383,-252.59037471,0.00021745,2]
[316192033,1709392239560,-280.28110387,0.00021744,2]
[316192035,1709392239569,-6662.15573748,0.00021745,2]
[316192037,1709392239578,-1079.89552638,0.00021746,2]
[316192039,1709392239587,-690.06,0.00021755,2]
[316192041,1709392239596,-2523.9528131,0.0002177,2]
[316192043,1709392239605,-345.331442,0.00021875,2]
[316192045,1709392239615,-209.87638735,0.000219,2]
[316192047,1709392239624,-327.2251864,0.00022133,2]
[316192049,1709392239633,-1705.280595,0.00022134,2]
[316192051,1709392239642,-171.4412513,0.00022195,2]
[316192053,1709392239651,-1720.37113928,0.00022612,5]
[316192055,1709392239660,-1251.5020218,0.00022612,5]
[316192057,1709392239669,-210.20619241,0.00022612,5]
[316192059,1709392239678,-1509.63307792,0.00023,2]
[316192061,1709392239687,-153.0,0.00023278,2]
[316192063,1709392239696,-153.0,0.00023278,2]
[316192065,1709392239706,-180.83884111,0.0002382,2]
[316192067,1709392239714,-16499.2734939,0.000239,2]
[316192069,1709392239724,-180.8388411,0.000239,2]
[316192072,1709392239734,-500.0,0.0002392,2]
[316192073,1709392239743,-500.0,0.0002392,2]
[316192075,1709392239754,-500.0,0.0002392,2]
[316192077,1709392239764,-500.0,0.0002392,2]
[316192080,1709392239774,-500.0,0.0002392,2]
[316192082,1709392239784,-500.0,0.0002392,2]
[316192083,1709392239793,-500.0,0.0002392,2]
[316192085,1709392239803,-155.01085076,0.00023998,2]
[316192087,1709392239812,-155.15515516,0.00023998,2]
[316192089,1709392239822,-500.0,0.00023998,2]
[316192091,1709392239832,-500.0,0.00023998,2]
[316192093,1709392239841,-500.0,0.00023998,2]
[316192095,1709392239851,-500.0,0.00023998,2]
[316192097,1709392239861,-500.0,0.00023998,2]
[316192099,1709392239870,-156.21815447,0.00023998,2]
[316192101,1709392239880,-500.0,0.00023998,2]
[316192103,1709392239889,-275.31,0.00023998,2]
[316192105,1709392239898,-500.0,0.00023998,2]
[316192107,1709392239907,-500.0,0.00023998,2]
[316192109,1709392239916,-500.0,0.00023998,2]
[316192111,1709392239925,-500.0,0.00023998,2]
[316192113,1709392239934,-500.0,0.00023998,2]
[316192115,1709392239943,-500.0,0.00023998,2]
[316192117,1709392239952,-500.0,0.00023998,2]
[316192119,1709392239961,-500.0,0.00023998,2]
[316192121,1709392239970,-396.44599555,0.00023998,2]
[316192123,1709392239979,-500.0,0.00023998,2]
[316192125,1709392239988,-173.78616604,0.00023998,2]
[316192127,1709392239997,-392.84263966,0.00023998,2]
[316192129,1709392240007,-160.0,0.00023999,2]
[316192131,1709392240017,-160.0,0.00023999,2]
[316192133,1709392240026,-160.0,0.00023999,2]